Cogmind - Beta 14 @@@ ROGUE MODE // 2024.12.06 @ 13:31:46 Player: hoganstuff Result: Destroyed by as-47135 with Assembled Rifle Performance ------------- Evolutions (0) 0 Regions Visited (3) 600 Robots Destroyed (17) 85 Value Destroyed (359) 359 Prototype IDs (23) 460 Alien Tech Used (0) 0 Bonus (300) 300 TOTAL SCORE: 1804 Bonus ------- Aligned with FarCom 300 Cogmind --------- Core Integrity 0/250 Matter 259/300 Energy 94/100 System Corruption 4% Temperature Cool (6) Movement Treading (240) Ox1 Location -10/Exiles Parts ------- > --- POWER (1) -------- (None) > --- PROPULSION (2) --- Light Treads > --- UTILITY (2) ------ Large Storage Unit > --- WEAPON (2) ------- EM Pulse Gun Grenade Launcher > --- INVENTORY (15) --- Light Treads Flight Unit Flight Unit Flight Unit Flight Unit Improved Heat Sink Medium Matter Pod (100) Weapon Shielding Particle Gun XL Autogun Array Datajack Mining Laser Peak State ------------ > --- POWER ------------ Light Nuclear Core > --- PROPULSION ------- Light Treads Light Treads > --- UTILITY ---------- Large Storage Unit Weapon Shielding > --- WEAPON ----------- EM Pulse Gun Particle Gun > --- INVENTORY -------- Light Treads Flight Unit Flight Unit Flight Unit Flight Unit Improved Heat Sink Medium Matter Pod Weapon Shielding XL Autogun Array Grenade Launcher Datajack Mining Laser [Rating: 14] Favorites ----------- Power Ion Engine Engine Ion Engine Power Core Light Nuclear Core Propulsion Light Treads Treads Light Treads Utility Weapon Shielding Storage High-capacity Storage Unit Protection Weapon Shielding Weapon EM Pulse Gun Energy Gun EM Pulse Gun Launcher Grenade Launcher Build | -11 -10 -10 -10 ------- Run | Yrd Mat Min Exi Slots Evolved . | . . . . Power . | . . . . Propulsion . | . . . . Utility . | . . . . Weapon . | . . . . Parts Attached 15 | 6 7 . 2 Power 2 | 1 . . 1 Engine 1 | 1 . . . Core 1 | . . . 1 Reactor . | . . . . Propulsion 4 | 2 2 . . Treads 4 | 2 2 . . Leg . | . . . . Wheel . | . . . . Hover . | . . . . Flight . | . . . . Utility 4 | 1 3 . . Device . | . . . . Storage 3 | 1 2 . . Processor . | . . . . Hackware . | . . . . Protection 1 | . 1 . . Artifact . | . . . . Weapon 5 | 2 2 . 1 Energy Gun 4 | 2 2 . . Energy Cannon . | . . . . Ballistic Gun . | . . . . Ballistic Cannon . | . . . . Launcher 1 | . . . 1 Special Weapon . | . . . . Impact Weapon . | . . . . Slashing Weapon . | . . . . Piercing Weapon . | . . . . Special Melee Weapon . | . . . . Unidentified Prototypes . | . . . . Parts Lost 3 | . . . 3 Power 1 | . . . 1 Propulsion 1 | . . . 1 Utility 1 | . . . 1 Weapon . | . . . . Highest Loss Streak 3 | . . . 3 To Critical Strikes . | . . . . Average Slot Usage (%) 99 | . 99 100 99 Engine 13 | . 14 14 10 Treads 27 | . 27 28 27 Storage 14 | . 14 14 14 Protection 13 | . 13 14 14 Energy Gun 27 | . 28 28 27 Peak Build Rating 14 | 6 9 9 14 Average Rating 8 | 4 8 9 9 On Entrance 6 | . 6 9 9 Naked Turns . | . . . . Heaviest Build 51 | 14 51 31 31 Greatest Support 40 | 40 40 40 40 Greatest Overweight (x) 1 | . 1 . . Average Overweight (x) . | . . . . Largest Inventory Capacity 20 | 8 20 15 15 Average Capacity 15 | 6 16 15 15 Most Carried 15 | 2 14 14 15 Average Carried 10 | 1 10 14 14 Final Capacity 15 | 8 15 15 15 Final Carried 15 | 2 14 14 15 Class Distribution -------------------- 100% | Mutant Dominant Class ---------------- Mutant | -10/Materials Mutant | -10/Mines Mutant | -10/Exiles Resources | -11 -10 -10 -10 ----------- Run | Yrd Mat Min Exi Matter Collected 472 | 260 212 . . Remotely . | . . . . Salvage Created 572 | . 559 . 13 Parts 34 | . 34 . . Haulers Intercepted 1 | . 1 . . Recyclers Shooed . | . . . . Parts Field Recycled . | . . . . Retrieved Matter . | . . . . Parts Self-Destructed . | . . . . Prevented . | . . . . Kills | -11 -10 -10 -10 ------- Run | Yrd Mat Min Exi Combat Hostiles Destroyed 17 | . 13 . 4 Guns 14 | . 13 . 1 AOE 3 | . . . 3 Classes Destroyed 7 | . 6 . 1 Worker 1 | . 1 . . Hauler 1 | . 1 . . Recycler 1 | . 1 . . Watcher 1 | . 1 . . Swarmer 6 | . 6 . . Grunt 7 | . 7 . . Assembled 4 | . . . 4 Best Kill Streak 6 | . 6 . 4 Combat Bots Only 4 | . 4 . 4 Max Kills in Single Turn 2 | . 2 . 2 Gunslinging 1 | . 1 . . Exploded 2 | . . . 2 Melee . | . . . . Uniques/NPCs Destroyed . | . . . . Combat | -11 -10 -10 -10 -------- Run | Yrd Mat Min Exi Hostile Shots Fired 88 | . 69 . 19 Missed 29 | . 21 . 8 Damage Taken 795 | . 605 . 190 Core 253 | . 172 . 81 Absorbed by Shields . | . . . . Redirected to Shielding 47 | . 35 . 12 Regen/Repaired (Parts) 177 | . 177 . . Core Remaining (%) 100 | 100 . . . Volleys Fired 45 | . 42 . 3 Largest 2 | . 2 . 2 Hottest 105 | . 105 . 70 Shots Fired 87 | . 81 . 6 Gun 85 | . 81 . 4 Cannon . | . . . . Launcher 2 | . . . 2 Special . | . . . . Kinetic . | . . . . Thermal 31 | . 31 . . Explosive 2 | . . . 2 Electromagnetic 54 | . 50 . 4 Robot Hit Streak 6 | . 6 . 5 Robot Miss Streak 3 | . 3 . 3 Penetration Max . | . . . . Secondary Targets 3 | . 3 . . Max Gunslinging Chain 1 | . 1 . . Shots Hit Robots 51 | . 46 . 5 Core Hits 34 | . 25 . 9 Critical Kills . | . . . . Critical Parts Destroyed . | . . . . Critical Strikes 2 | . 2 . . Burn 1 | . 1 . . Corrupt 1 | . 1 . . Melee Attacks . | . . . . Impact . | . . . . Slashing . | . . . . Piercing . | . . . . Sneak Attacks . | . . . . Combat Hostiles . | . . . . Follow-up Attacks . | . . . . Damage Inflicted 1007 | . 781 . 226 Guns 760 | . 726 . 34 Cannons . | . . . . Explosions 230 | . 38 . 192 Melee . | . . . . Ramming 17 | . 17 . . Kinetic . | . . . . Thermal 295 | . 295 . . Explosive 192 | . . . 192 Electromagnetic 503 | . 469 . 34 Impact . | . . . . Slashing . | . . . . Piercing . | . . . . Highest Corruption 4 | . 4 4 4 Average Corruption 3 | . 3 4 4 Corruption Purged . | . . . . Corruption Blocked . | . . . . Effects 17 | . 5 1 11 Message Errors 5 | . 2 . 3 Matter Fused 2 | . . . 2 Heat Flow Errors 3 | . 1 . 2 Energy Discharges 4 | . 1 . 3 Data Loss (major) 1 | . . 1 . Misfires 1 | . . . 1 Alerts 1 | . 1 . . Overload Shots . | . . . . Overflow Damage 11 | . 10 . 1 Projectiles . | . . . . Explosions 11 | . 10 . 1 Melee . | . . . . Knockbacks 1 | . 1 . . Impact 1 | . 1 . . Kinetic . | . . . . Secondary . | . . . . Self-Inflicted Damage 82 | . 39 . 43 Shots 3 | . 1 . 2 Rammed 3 | . 3 . . Targets Rammed 3 | . 3 . . Kicked . | . . . . Crushed . | . . . . Highest Temperature 652 | . 652 . 218 Average Temperature 129 | . 137 . 76 Received Heat Transfer 219 | . 219 . . Effects 13 | . 13 . . Shutdowns 2 | . 2 . . Energy Bleed 1 | . 1 . . Interference 1 | . 1 . . Matter Decay 1 | . 1 . . Short Circuit 2 | . 2 . . Damage (major) 5 | . 5 . . Damage (core) 1 | . 1 . . Siege Activations . | . . . . Robots Corrupted . | . . . . Combat Hostiles . | . . . . Parts Fried 1 | . 1 . . Impact Corruptions . | . . . . Robots Melted . | . . . . Combat Hostiles . | . . . . Parts Melted . | . . . . Heat Transferred 766 | . 766 . . Parts Sabotaged . | . . . . Parts Stolen . | . . . . Parts Stripped . | . . . . Power Chain Reactions 1 | . 1 . . Alert | -11 -10 -10 -10 ------- Run | Yrd Mat Min Exi Peak Influence 240 | . 240 61 . Initial 61 | . . 61 . Average 46 | . 48 61 . Maximum Alert Level 1 | . 1 . . Low Security (%) 95 | 100 94 100 . Level 1 4 | . 5 . . Level 2 . | . . . . Level 3 . | . . . . Level 4 . | . . . . Level 5 . | . . . . High Security . | . . . . Max Security . | . . . . Squads Dispatched 2 | . 2 . . Investigation . | . . . . Extermination . | . . . . Reinforcement 2 | . 2 . . Assault . | . . . . Garrison . | . . . . Intercept . | . . . . Searches Triggered . | . . . . Construction Impeded . | . . . . Haulers Reinforced . | . . . . Active Scanning Responses . | . . . . Cargo Convoy Interrupts . | . . . . Stealth | -11 -10 -10 -10 --------- Run | Yrd Mat Min Exi Distress Signals 1 | . 1 . . Communications Jammed . | . . . . Distress Signals . | . . . . Times Spotted 30 | . 23 . 7 Peak Tracking Total 9 | . 4 . 9 Tactical Retreats 1 | . 1 . . Traps | -11 -10 -10 -10 ------- Run | Yrd Mat Min Exi Traps Triggered 2 | . 2 . . Indirectly . | . . . . Trap Hack Attempts . | . . . . Triggered . | . . . . Disarmed . | . . . . Reprogrammed . | . . . . Reused . | . . . . Traps Extracted . | . . . . Installed . | . . . . Triggered . | . . . . Machines | -11 -10 -10 -10 ---------- Run | Yrd Mat Min Exi Machines Disabled 3 | . 2 . 1 Max in Single Turn 1 | . 1 . 1 Machines Repaired . | . . . . Machines Dismantled . | . . . . Machines Sabotaged . | . . . . Overloaded Fab Kills . | . . . . Hacking | -11 -10 -10 -10 --------- Run | Yrd Mat Min Exi Machines Accessed 7 | . 6 . 1 Terminals 4 | . 4 . . Fabricators . | . . . . Repair Stations 1 | . 1 . . Recycling Units 1 | . 1 . . Scanalyzers . | . . . . Garrison Access . | . . . . Total Hacks 24 | . 23 . 1 Successful 15 | . 14 . 1 Failed 9 | . 9 . . Catastrophic 3 | . 3 . . Database Lockouts . | . . . . Manual 7 | . 6 . 1 Terminals 12 | . 12 . . Fabricators . | . . . . Repair Stations 9 | . 9 . . Recycling Units 2 | . 2 . . Scanalyzers . | . . . . Garrison Access . | . . . . Terminal Hacks 5 | . 4 . 1 Part Schematic 1 | . 1 . . Hauler Manifests 1 | . 1 . . Zone Layout 2 | . 2 . . Derelict Proto ID Bank 1 | . . . 1 Fabricator Hacks . | . . . . Repair Station Hacks 8 | . 8 . . Scan Component 4 | . 4 . . Repair 4 | . 4 . . Recycling Unit Hacks 2 | . 2 . . Report Inventory 1 | . 1 . . Retrieve Components 1 | . 1 . . Scanalyzer . | . . . . Garrison Access Hacks . | . . . . Unauthorized Hacks . | . . . . Terminals . | . . . . Fabricators . | . . . . Repair Stations . | . . . . Recycling Units . | . . . . Scanalyzers . | . . . . Garrison Access . | . . . . Data Cores Recovered . | . . . . Used . | . . . . Hacking Detections 6 | . 6 . . Full Trace Events . | . . . . Feedback Events . | . . . . Feedback Blocked . | . . . . Robot Schematics Acquired . | . . . . Robots Built . | . . . . Authchips . | . . . . Time . | . . . . Total Robot Build Rating . | . . . . Part Schematics Acquired 1 | . 1 . . Parts Built . | . . . . Authchips . | . . . . Time . | . . . . Total Part Build Rating . | . . . . Parts Repaired 4 | . 4 . . Time 132 | . 132 . . Parts Recycled . | . . . . Recycled Matter . | . . . . Retrieved Matter . | . . . . Retrieved Components 9 | . 9 . . Parts Scanalyzed . | . . . . Part Schematics Acquired . | . . . . Parts Damaged . | . . . . Bothacking | -11 -10 -10 -10 ------------ Run | Yrd Mat Min Exi Used RIF Installer . | . . . . Robots Hacked . | . . . . Non-combat . | . . . . Combat . | . . . . Robot Hacks Applied . | . . . . Relay Couplers Released . | . . . . Fabnet Peak Effective % . | . . . . Robots Rewired . | . . . . Allies Hacked . | . . . . Hacks Repelled . | . . . . Allies | -11 -10 -10 -10 -------- Run | Yrd Mat Min Exi Total Allies . | . . . . Largest Group . | . . . . Highest-Rated Group . | . . . . Highest-Rated Ally . | . . . . Total Orders . | . . . . Ally Attacks . | . . . . Total Damage . | . . . . Kills . | . . . . Allies Corrupted . | . . . . Allies Melted . | . . . . Intel | -11 -10 -10 -10 ------- Run | Yrd Mat Min Exi Robot Analysis Total . | . . . . Derelict Logs Recovered . | . . . . Drone Launches . | . . . . Drone Recoveries . | . . . . Exploration | -11 -10 -10 -10 ------------- Run | Yrd Mat Min Exi Turns Passed 1841 | 71 1352 48 370 Spaces Moved 795 | 39 504 31 221 Core 1 | 1 . . . Treads 794 | 38 504 31 221 Legs . | . . . . Wheels . | . . . . Hover . | . . . . Flight . | . . . . Fastest Speed 50 | 50 160 160 160 Average Speed 191 | 157 210 160 160 Slowest Speed 240 | 160 240 160 160 Overloaded Moves . | . . . . Propulsion Burnouts . | . . . . Robots Hopped . | . . . . Cave-ins Triggered . | . . . . Exploration Rate (%) 33 | 3 71 19 41 Regions Visited 3 Branch Regions 2 Pre-discovered Areas . | . . . . Known Exits Taken . | . . . . Unknown Exits Taken 3 | 1 1 1 . Scrap Searched . | . . . . Spaces Dug . | . . . . Terrain Destroyed 9 | . 3 . 6 Melee . | . . . . Projectile . | . . . . AOE 9 | . 3 . 6 Terrain Rammed . | . . . . Walls Destroyed . | . . . . Machines Disabled . | . . . . Actions | -11 -10 -10 -10 --------- Run | Yrd Mat Min Exi Total 1021 | 46 711 30 234 Wait 138 | . 138 . . Move 792 | 38 503 30 221 Hop . | . . . . Pick Up 19 | 2 15 . 2 Fast Attach 9 | 6 3 . . Attach 2 | . 1 . 1 Detach 2 | . 1 . 1 Swap 4 | . 3 . 1 Drop 6 | . 2 . 4 Fire 45 | . 42 . 3 Melee . | . . . . Ram . | . . . . Kick . | . . . . Crush 3 | . 3 . . Escape Stasis . | . . . . Rewire 1 | . . . 1 Trap . | . . . . Miscellaneous . | . . . . Route ------- -11/Scrapyard -10/Materials (discovered 4 exits: [*Mat x2] / [*Min x2]) -10/Mines -10/Exiles History --------- Turn | Location | Event 19 | -11/Scrapyard | Discovered new exit (range 15) 72 | -11/Scrapyard | Entered Materials 262 | -10/Materials | Repaired Corrupted Particle Gun 289 | -10/Materials | Discovered new exit (range 7) 302 | -10/Materials | Build established: Mutant 654 | -10/Materials | Discovered new exit (range 10) 746 | -10/Materials | Discovered new exit (range 5) 954 | -10/Materials | Repaired Corrupted Lgt. Treads 981 | -10/Materials | Repaired Lgt. Treads 1009 | -10/Materials | Repaired Lgt. Treads 1082 | -10/Materials | Discovered new exit (range 16) 1379 | -10/Materials | Core integrity fell below 50% 1424 | -10/Materials | Entered Mines 1443 | -10/Mines | Met a Derelict bent on vengeance 1464 | -10/Mines | Deemed a non-threat by the Exiles lab entrance 1466 | -10/Mines | Discovered new exit (range 5) 1472 | -10/Mines | Entered Exiles 1512 | -10/Exiles | Met 8R-AWN 1541 | -10/Exiles | Met EX-HEX 1584 | -10/Exiles | Met EX-BIN 1602 | -10/Exiles | Aligned with FarCom system 1604 | -10/Exiles | Given EX-Vault access code 1752 | -10/Exiles | Opened EX-Vault 1777 | -10/Exiles | Found XL Autogun Array 1812 | -10/Exiles | Warned to stay clear of 0b10 Research branches 1821 | -10/Exiles | Exiles lab attacked by MAIN.C 1821 | -10/Exiles | Attacked by the Exiles 1835 | -10/Exiles | Core integrity fell below 20% 1842 | -10/Exiles | Destroyed by as-47135 with Assembled Rifle Last Messages --------------- distributed network. 01821_ EXILES: Incoming Unaware force detected on approach from Mines. Prepare for evacuation. 01821_ System corrupted: FCS attempts to trigger EM Pulse Gun. 01821_ System corrupted: EM Pulse Gun misfires. 01821_ EXILES: Additional hostile detected within perimeter. 01823_ EX-BIN: "I just want to science!" 01834_ as-13190 destroyed. 01834_ as-97523 destroyed. 01834_ Destroyed Asb. Hover Unit. 01836_ Machine disabled. 01837_ as-07602 destroyed. 01837_ BIN's Workstation disabled. 01837_ Lgt. Treads destroyed. 01838_ Lgt. Nuclear Core destroyed. 01840_ Weapon Shielding destroyed. 01840_ as-56745 destroyed. Map ----- +----------------------------------------------------+ | ???????????????????????# X""#???????????? | | ???????????????????????# ## """#???????????? | | ?????????????????####??# #??"""""#???????????? | | ?????????????????"""""?# #???####????????????? | | ?????????????????""" ## #???????????????????? | | ???????????????#""X" #???????????????????? | | ???????????????#" #???????????????????? | | ???????????????#" ## #???????????????????? | | ???????????????#""""""?# #?#########?????????? | | ?????????????????"###??# #?#"""""""#?????????? | | ???????????????????????# #?#"""""""#?????????? | | ???????????????????????# #?#"""""""#?????????? | | ??????????????????????## ###"" """"#?????????? | | ??????????????????????#" """"#?????????? | | ??????????????????????#" """#?????????? | | ??????????????????????#" """#?????????? | | ??????????????????????#" """#?????????? | | ??????????????????????#" """#?????????? | | ??????????????????????#" """#?????????? | | ??????????????????????## """"?????????? | | ???????????????????????# """#?????????? | | ???????????????????????#" "X" """"?????????? | | ???????????????????????#" """ #?????????? | | ???????????????????????#" % """"""""#?????????? | | ??????????????????????##" ##########?????????? | | ?????????????????????## @ #??????????????????? | | ????????????????????##"" #??????????????????? | | ???????????????????""""" % #?????????????????? | | ??????????????????" " "" % #???###########???? | | ?????????????????"" " #####"""""""""##??? | | ???????????????? " " """ """"##?? | | ?????????????? "" " #?? | | ?????????????? a " """#?? | | ??????????????? a " "#?? | | ??????????????? " "##? | | ??????????????? a ""## | | ???????????????? """""" """ | | ???????????????? ######""" " | | ?????????????????""#?????#####""" | | ?????????????????????????????##""" | | ??????????????????????????????#"""" | | ??????????????????????????????#"" | | ??????????????????????????????"""" | | ????????????????????????????"" | | ???????????????????????????" | | ??????????????????????????? | | ??????????????????????????? | | ??????????????????????????? " | | ??????????????????????????? "" """ " | | ???????????????????????????#?""" " " ""#" " | +----------------------------------------------------+ Best States ------------- Heat Dissipation 25 Energy Generation 14 Energy Capacity 250 Matter Stores 300 Matter Capacity 300 Sight Range 16 Terrain Scan Density 10 Weapon Shielding 33 Evasion (%) 40 Recoil Reduction 2 Item Schematics ----------------- Lgt. Armor Plating | -10/Materials | Hacked Robot Schematics ------------------ None Fabricated ------------ Nothing Alien Tech Used ----------------- None Achievements -------------- None Challenges ------------ None Game ------ Seed MicrowarpCryofiberBroadsword Manual? 0 Play Time 00:15:50 Cumulative 36.8 hours Start 2024.12.06 @ 13:15:11 End 2024.12.06 @ 13:31:46 Sessions 1 Manual Loads 0 Difficulty Rogue Special Mode None Game No. 26 Rogue 20 Adventurer 6 Explorer 0 Win Type - Total 0 Types 0/0/0/0/0/0/0/0/0 Lore% 17 Gallery% 29 Achievement% 26 Wizard Run 0 Options --------- Layout 1 ASCII 0 Keyboard 0 Movement Arrows Keybinds 0 Fullscreen 2 Font 24/Smallcaps Map View 50x35 Zoom Use 0% Tactical HUD 1 Map Filters NONE Filters NONE Steam 1 RUN: ef0dc81f-41b9-4f6b-9725-f93323d1b0af